Cogmind - Beta 16.1 @@@ ROGUE MODE // 2026.04.14 @ 21:05:41 Player: Maelyn Result: Destroyed by L-31 Rogue with Katana Performance ------------- Evolutions (2) 1000 Regions Visited (5) 1000 Robots Destroyed (40) 200 Value Destroyed (903) 903 Prototype IDs (24) 480 Alien Tech Used (0) 0 Bonus (300) 300 TOTAL SCORE: 3883 Bonus ------- Aligned with FarCom 300 Cogmind --------- Core Integrity 0/550 Matter 290/300 Energy 75/100 System Corruption 0% Temperature Cool (6) Movement Core (450) Ox8 Location -8/Materials Parts ------- > --- POWER (1) -------- (None) > --- PROPULSION (4) --- (None) > --- UTILITY (4) ------ Large Storage Unit > --- WEAPON (2) ------- Particle Gun Spear > --- INVENTORY (15) --- Aerolev Unit Aerolev Unit Faulty Aerolev Unit Faulty Aerolev Unit Faulty Aerolev Unit Medium Storage Unit High-capacity Battery (250) PSU Rigger Medium Laser Particle Gun Light Assault Rifle Rocket Launcher Peak State ------------ > --- POWER ------------ Light Nuclear Core > --- PROPULSION ------- Aluminum Leg Aluminum Leg Aluminum Leg Aluminum Leg > --- UTILITY ---------- Heat Sink Improved Heat Sink Large Storage Unit > --- WEAPON ----------- Beam Cannon Great Axe > --- INVENTORY -------- Medium Storage Unit High-capacity Battery PSU Rigger Medium Laser Particle Gun Light Assault Rifle Rocket Launcher Spear [Rating: 19] Favorites ----------- Power Light Nuclear Core Engine Ion Engine Power Core Light Nuclear Core Propulsion Aluminum Leg Treads Light Treads Leg Aluminum Leg Utility Large Storage Unit Device Heat Sink Storage Large Storage Unit Weapon Beam Cannon Energy Gun Particle Gun Energy Cannon Beam Cannon Ballistic Gun Assault Rifle Slashing Weapon Great Axe Piercing Weapon Spear Build | -11 -10 -10 -10 -9 -8 ------- Run | Yrd Mat Min Exi Min Mat Slots Evolved 4 | . . . . . 4 Power . | . . . . . . Propulsion 2 | . . . . . 2 Utility 2 | . . . . . 2 Weapon . | . . . . . . Parts Attached 29 | 7 10 4 . 2 6 Power 5 | 1 2 1 . . 1 Engine 3 | 1 1 . . . 1 Core 2 | . 1 1 . . . Reactor . | . . . . . . Propulsion 8 | 2 3 . . 1 2 Treads 3 | 2 1 . . . . Leg 5 | . 2 . . 1 2 Wheel . | . . . . . . Hover . | . . . . . . Flight . | . . . . . . Utility 6 | 2 3 . . . 1 Device 3 | 1 1 . . . 1 Storage 3 | 1 2 . . . . Processor . | . . . . . . Hackware . | . . . . . . Protection . | . . . . . . Artifact . | . . . . . . Weapon 10 | 2 2 3 . 1 2 Energy Gun 5 | 2 . 2 . . 1 Energy Cannon 1 | . . 1 . . . Ballistic Gun 2 | . 2 . . . . Ballistic Cannon . | . . . . . . Launcher . | . . . . . . Special Weapon . | . . . . . . Impact Weapon . | . . . . . . Slashing Weapon 1 | . . . . 1 . Piercing Weapon 1 | . . . . . 1 Special Melee Weapon . | . . . . . . Unidentified Prototypes 1 | . . . . . 1 Parts Lost 15 | . 6 . . . 9 Power 2 | . 1 . . . 1 Propulsion 6 | . 2 . . . 4 Utility 3 | . 1 . . . 2 Weapon 4 | . 2 . . . 2 Highest Loss Streak 8 | . 4 . . . 8 To Critical Strikes . | . . . . . . Average Backups 9 | 3 6 8 11 12 11 Power 1 | . 1 1 2 1 . Propulsion 3 | 1 2 3 4 4 2 Utility 1 | . 1 1 1 3 3 Weapon 2 | 1 . 2 3 3 5 Tool/Special . | . . . . . . Unused Backups 10 | . . . 1 . 9 Power . | . . . . . . Propulsion 7 | . . . 1 . 6 Utility 2 | . . . . . 2 Weapon 1 | . . . . . 1 Tool/Special . | . . . . . . Average Slot Usage (%) 87 | . 95 100 100 100 45 Engine 1 | . 3 4 . . . Core 9 | . 9 9 14 14 2 Treads 7 | . 25 . . . . Leg 17 | . 1 28 28 28 14 Device 12 | . 13 14 14 14 5 Storage 13 | . 14 14 14 14 9 Energy Gun 9 | . 9 11 14 10 . Energy Cannon 7 | . . 11 14 14 3 Ballistic Gun 5 | . 17 5 . . . Slashing Weapon 1 | . . . . 3 4 Peak Build Rating 19 | 7 9 11 12 14 19 Average Rating 10 | 4 8 9 11 11 11 On Entrance 8 | . 7 7 11 11 14 Avg Prop Armor Cover (%) . | . . . . . . Naked Turns . | . . . . . . Heaviest Build 34 | 14 29 32 32 33 34 Greatest Support 40 | 40 40 20 20 20 40 Greatest Overweight (x) 9 | 1 7 1 1 1 9 Average Overweight (x) . | . . 1 1 1 3 Largest Inventory Capacity 15 | 8 15 15 15 15 15 Average Capacity 14 | 7 14 15 15 15 15 Most Carried 15 | 6 9 11 13 15 13 Average Carried 9 | 3 6 8 11 12 10 Final Capacity 15 | 8 15 15 15 15 15 Final Carried 13 | 4 7 11 12 13 12 Class Distribution -------------------- 68% | Scavenger-Mutant 31% | Mutant Dominant Class ---------------- Scavenger-Mutant | -10/Materials Scavenger-Mutant | -10/Mines Scavenger-Mutant | -10/Exiles Scavenger-Mutant | -9/Mines Mutant | -8/Materials Resources | -11 -10 -10 -10 -9 -8 ----------- Run | Yrd Mat Min Exi Min Mat Matter Collected 587 | 140 252 127 . . 68 Remotely . | . . . . . . Salvage Created 1134 | 39 444 132 . . 519 Parts 81 | 7 36 14 . . 24 Haulers Intercepted 2 | . 1 . . . 1 Recyclers Shooed 1 | . 1 . . . . Parts Field Recycled . | . . . . . . Retrieved Matter . | . . . . . . Parts Self-Destructed . | . . . . . . Prevented . | . . . . . . Parts Restored . | . . . . . . Kills | -11 -10 -10 -10 -9 -8 ------- Run | Yrd Mat Min Exi Min Mat Combat Hostiles Destroyed 31 | . 13 5 . . 13 Melee 11 | . . . . . 11 Guns 18 | . 12 4 . . 2 Cannons 1 | . . 1 . . . AOE 1 | . 1 . . . . Classes Destroyed 7 | 1 5 . . . 1 Worker 1 | . . . . . 1 Tunneler 4 | 3 1 . . . . Hauler 2 | . 1 . . . 1 Operator 1 | . 1 . . . . Watcher 1 | . 1 . . . . Swarmer 14 | . 5 3 . . 6 Grunt 17 | . 8 2 . . 7 Best Kill Streak 5 | 2 5 3 . . 5 Combat Bots Only 5 | . 5 3 . . 5 Max Kills in Single Turn 1 | 1 1 1 . . 1 Gunslinging . | . . . . . . Exploded 1 | . 1 . . . . Melee 1 | . . . . . 1 Uniques/NPCs Destroyed . | . . . . . . Combat | -11 -10 -10 -10 -9 -8 -------- Run | Yrd Mat Min Exi Min Mat Hostile Shots Fired 253 | . 94 17 . . 142 Missed 55 | . 18 4 . . 33 Hits 198 | . 76 13 . . 109 Melee 6 | . . . . . 6 Projectile 192 | . 76 13 . . 103 Critical Strikes 3 | . . . . . 3 Damage Taken 2390 | . 786 144 . 60 1400 Core 726 | . 115 27 . . 584 Absorbed by Shields . | . . . . . . Core Remaining (%) 71 | 100 . . . 43 . Volleys Fired 78 | 4 62 8 . . 4 Largest 2 | 2 2 2 . . 1 Hottest 110 | 90 90 110 . . 65 Shots Fired 132 | 8 104 16 . . 4 Gun 127 | 8 104 11 . . 4 Cannon 5 | . . 5 . . . Launcher . | . . . . . . Special . | . . . . . . Kinetic 65 | . 59 6 . . . Thermal 67 | 8 45 10 . . 4 Explosive . | . . . . . . Electromagnetic . | . . . . . . Robot Hit Streak 14 | 3 14 8 . . 12 Robot Miss Streak 5 | 1 5 1 . . . Penetration Max . | . . . . . . Secondary Targets 2 | . 2 . . . . Max Gunslinging Chain 1 | . 1 . . . . Shots Hit Robots 129 | 5 68 12 . . 44 Core Hits 54 | 3 27 7 . . 17 Critical Kills . | . . . . . . Critical Parts Destroyed . | . . . . . . Critical Strikes 3 | . 1 . . . 2 Burn 1 | . 1 . . . . Impale 2 | . . . . . 2 Melee Attacks 55 | . . . . . 55 Impact . | . . . . . . Slashing 34 | . . . . . 34 Piercing 21 | . . . . . 21 Sneak Attacks 2 | . . . . . 2 Combat Hostiles . | . . . . . . Follow-up Attacks . | . . . . . . Damage Inflicted 2523 | 57 795 169 . 3 1499 Guns 1008 | 56 792 101 . . 59 Cannons 68 | . . 68 . . . Explosions . | . . . . . . Melee 1440 | . . . . . 1440 Ramming 7 | 1 3 . . 3 . Kinetic 516 | . 465 51 . . . Thermal 560 | 56 327 118 . . 59 Explosive . | . . . . . . Electromagnetic . | . . . . . . Impact . | . . . . . . Slashing 1126 | . . . . . 1126 Piercing 314 | . . . . . 314 Highest Corruption . | . . . . . . Average Corruption . | . . . . . . Corruption Purged . | . . . . . . Corruption Blocked . | . . . . . . Overload Shots . | . . . . . . Overflow Damage 126 | . . . . . 126 Projectiles . | . . . . . . Explosions . | . . . . . . Melee 126 | . . . . . 126 Knockbacks . | . . . . . . Impact . | . . . . . . Kinetic . | . . . . . . Secondary . | . . . . . . Self-Inflicted Damage . | . . . . . . Shots . | . . . . . . Rammed 1 | 1 . . . . . Targets Rammed 3 | 1 1 . . 1 . Kicked 1 | . . . . 1 . Crushed 1 | . 1 . . . . Highest Temperature 459 | 60 459 96 . . 6 Average Temperature 105 | 24 126 44 . . 3 Received Heat Transfer 723 | . 207 66 . . 450 Effects 3 | . 3 . . . . Shutdowns 1 | . 1 . . . . Energy Bleed 1 | . 1 . . . . Damage (minor) 1 | . 1 . . . . Siege Activations . | . . . . . . Martial Activations . | . . . . . . Shielding Activations . | . . . . . . Robots Disrupted . | . . . . . . Combat Hostiles . | . . . . . . Robots Corrupted . | . . . . . . Combat Hostiles . | . . . . . . Parts Fried . | . . . . . . Impact Corruptions . | . . . . . . Robots Melted . | . . . . . . Combat Hostiles . | . . . . . . Parts Melted 2 | . 1 . . . 1 Heat Transferred 1535 | 137 954 296 . . 148 Parts Sabotaged . | . . . . . . Parts Stolen . | . . . . . . Parts Stripped . | . . . . . . Power Chain Reactions . | . . . . . . Alert | -11 -10 -10 -10 -9 -8 ------- Run | Yrd Mat Min Exi Min Mat Maximum Alert Level . | . . . . . . Low Security (%) 100 | 100 100 100 . 100 100 Level 1 . | . . . . . . Level 2 . | . . . . . . Level 3 . | . . . . . . Level 4 . | . . . . . . Level 5 . | . . . . . . High Security . | . . . . . . Max Security . | . . . . . . Peak Influence 122 | 5 122 96 . . 100 Initial 6 | . . 6 . . . Average 31 | . 56 56 . . 23 Influence Increases 791 | 15 339 120 . . 317 Destroy 0b10 Robot/C 620 | . 260 100 . . 260 Destroy 0b10 Robot/NC 45 | 15 20 . . . 10 Destroy Leader 96 | . 44 20 . . 32 Lose Combat Pursuer 30 | . 15 . . . 15 Influence Decreases 722 | 15 321 122 16 . 248 Entered New Map 28 | . . 12 16 . . Time Decay 557 | 15 274 110 . . 158 Lost Part 137 | . 47 . . . 90 Squads Dispatched 3 | . 2 . . . 1 Investigation 1 | . 1 . . . . Extermination . | . . . . . . Reinforcement 2 | . 1 . . . 1 Assault . | . . . . . . Garrison . | . . . . . . Intercept . | . . . . . . Searches Triggered . | . . . . . . Construction Impeded . | . . . . . . Haulers Reinforced . | . . . . . . Active Scanning Responses . | . . . . . . Cargo Convoy Interrupts . | . . . . . . Stealth | -11 -10 -10 -10 -9 -8 --------- Run | Yrd Mat Min Exi Min Mat Distress Signals 1 | . . . . . 1 Communications Jammed . | . . . . . . Distress Signals . | . . . . . . Times Spotted 45 | . 22 4 . . 19 Peak Tracking Total 7 | . 7 2 . . 7 Tactical Retreats 2 | . 1 . . . 1 Traps | -11 -10 -10 -10 -9 -8 ------- Run | Yrd Mat Min Exi Min Mat Traps Triggered 1 | . 1 . . . . Indirectly . | . . . . . . Trap Hack Attempts . | . . . . . . Triggered . | . . . . . . Disarmed . | . . . . . . Reprogrammed . | . . . . . . Reused . | . . . . . . Traps Extracted . | . . . . . . Installed . | . . . . . . Triggered . | . . . . . . Machines | -11 -10 -10 -10 -9 -8 ---------- Run | Yrd Mat Min Exi Min Mat Machines Disabled . | . . . . . . Max in Single Turn . | . . . . . . Machines Repaired . | . . . . . . Machines Dismantled . | . . . . . . Machines Sabotaged . | . . . . . . Overloaded Fab Kills . | . . . . . . Hacking | -11 -10 -10 -10 -9 -8 --------- Run | Yrd Mat Min Exi Min Mat Machines Accessed 2 | . . . 1 1 . Terminals . | . . . . . . Fabricators . | . . . . . . Repair Stations . | . . . . . . Recycling Units . | . . . . . . Scanalyzers . | . . . . . . Garrison Access . | . . . . . . Total Hacks 2 | . . . 1 1 . Successful 2 | . . . 1 1 . Failed . | . . . . . . Catastrophic . | . . . . . . Database Lockouts . | . . . . . . Manual 1 | . . . 1 . . Terminals . | . . . . . . Fabricators . | . . . . . . Repair Stations . | . . . . . . Recycling Units . | . . . . . . Scanalyzers . | . . . . . . Garrison Access . | . . . . . . Terminal Hacks 2 | . . . 1 1 . Open Door 1 | . . . . 1 . Proto ID Catalog 1 | . . . 1 . . Fabricator Hacks . | . . . . . . Repair Station Hacks . | . . . . . . Recycling Unit Hacks . | . . . . . . Scanalyzer . | . . . . . . Garrison Access Hacks . | . . . . . . Unauthorized Hacks . | . . . . . . Terminals . | . . . . . . Fabricators . | . . . . . . Repair Stations . | . . . . . . Recycling Units . | . . . . . . Scanalyzers . | . . . . . . Garrison Access . | . . . . . . Data Cores Recovered . | . . . . . . Used . | . . . . . . Hacking Detections . | . . . . . . Full Trace Events . | . . . . . . Feedback Events . | . . . . . . Feedback Blocked . | . . . . . . Robot Schematics Acquired . | . . . . . . Robots Built . | . . . . . . Authchips . | . . . . . . Time . | . . . . . . Total Robot Build Rating . | . . . . . . Part Schematics Acquired . | . . . . . . Parts Built . | . . . . . . Authchips . | . . . . . . Time . | . . . . . . Total Part Build Rating . | . . . . . . Part Studies Acquired . | . . . . . . Parts Repaired . | . . . . . . Time . | . . . . . . Parts Recycled . | . . . . . . Recycled Matter . | . . . . . . Retrieved Matter . | . . . . . . Retrieved Components . | . . . . . . Parts Scanalyzed . | . . . . . . Part Schematics Acquired . | . . . . . . Parts Damaged . | . . . . . . Bothacking | -11 -10 -10 -10 -9 -8 ------------ Run | Yrd Mat Min Exi Min Mat Used RIF Installer . | . . . . . . Robots Hacked . | . . . . . . Non-combat . | . . . . . . Combat . | . . . . . . Robot Hacks Applied . | . . . . . . Relay Couplers Released . | . . . . . . Fabnet Peak Effective % . | . . . . . . Robots Rewired . | . . . . . . Allies Hacked . | . . . . . . Hacks Repelled . | . . . . . . Allies | -11 -10 -10 -10 -9 -8 -------- Run | Yrd Mat Min Exi Min Mat Total Allies 3 | . . . . 3 . Largest Group 3 | . . . . 3 2 Highest-Rated Group 40 | . . . . 40 32 Highest-Rated Ally 16 | . . . . 16 16 Total Orders . | . . . . . . Ally Attacks 7 | . . . . . 7 Total Damage 60 | . . . . . 60 Kills . | . . . . . . Allies Corrupted . | . . . . . . Allies Melted . | . . . . . . Intel | -11 -10 -10 -10 -9 -8 ------- Run | Yrd Mat Min Exi Min Mat Active Infowar (turns) 725 | 21 704 . . . . Seismic 725 | 21 704 . . . . Robot Analysis Total . | . . . . . . Derelict Logs Recovered 3 | . . 1 . 2 . Drone Launches . | . . . . . . Drone Recoveries . | . . . . . . Exploration | -11 -10 -10 -10 -9 -8 ------------- Run | Yrd Mat Min Exi Min Mat Turns Passed 2735 | 118 761 230 560 542 524 Spaces Moved 1211 | 62 346 104 294 281 124 Core 67 | 11 1 . . . 55 Treads 377 | 51 326 . . . . Legs 767 | . 19 104 294 281 69 Wheels . | . . . . . . Hover . | . . . . . . Flight . | . . . . . . Fastest Speed 50 | 50 160 190 190 190 120 Average Speed 186 | 144 164 190 190 190 246 Slowest Speed 500 | 160 400 190 190 190 500 Overloaded Moves . | . . . . . . Propulsion Burnouts . | . . . . . . Robots Hopped . | . . . . . . Potential Cave-ins . | . . . . . . Cave-ins Triggered . | . . . . . . Exploration Rate (%) 40 | 4 62 30 61 70 14 Regions Visited 5 Branch Regions 3 Pre-discovered Areas 1 | . . . . 1 . Known Exits Taken . | . . . . . . Unknown Exits Taken 5 | 1 1 1 1 1 . Scrap Searched 1 | . . 1 . . . Spaces Dug . | . . . . . . Terrain Destroyed . | . . . . . . Melee . | . . . . . . Projectile . | . . . . . . AOE . | . . . . . . Terrain Rammed . | . . . . . . Walls Destroyed . | . . . . . . Machines Disabled . | . . . . . . Actions | -11 -10 -10 -10 -9 -8 --------- Run | Yrd Mat Min Exi Min Mat Total 1467 | 79 436 119 296 289 248 Wait 65 | . 14 1 . . 50 Move 1206 | 61 345 103 293 280 124 Hop . | . . . . . . Pick Up 23 | 6 3 3 2 3 6 Fast Attach 10 | 5 3 . . . 2 Attach 9 | 2 3 . . . 4 Detach . | . . . . . . Swap 10 | . 4 4 . 2 . Drop 8 | . 1 . 1 3 3 Fire 78 | 4 62 8 . . 4 Melee 55 | . . . . . 55 Ram . | . . . . . . Kick 1 | . . . . 1 . Crush 2 | 1 1 . . . . Escape Stasis . | . . . . . . Rewire . | . . . . . . Trap . | . . . . . . Miscellaneous . | . . . . . . Route ------- -11/Scrapyard -10/Materials (discovered 3 exits: [*Mat x2] / [*Min]) -10/Mines -10/Exiles -9/Mines -8/Materials (discovered 1 exit: Sto) History --------- Turn | Location | Event 11 | -11/Scrapyard | Discovered new exit (range 16) 119 | -11/Scrapyard | Entered Materials 305 | -10/Materials | Build established: Mutant 482 | -10/Materials | Discovered new exit (range 12) 631 | -10/Materials | Discovered new exit (range 10) 696 | -10/Materials | Discovered new exit (range 8) 722 | -10/Materials | Build established: Scavenger-Mutant 854 | -10/Materials | Lost 4 parts (1p2n1u) 880 | -10/Materials | Entered Mines 881 | -10/Mines | Assembled infested the area 912 | -10/Mines | Learned Materials stockpile data 938 | -10/Mines | Met 8R-AWN 945 | -10/Mines | Core integrity fell below 50% 1102 | -10/Mines | Discovered new exit (range 5) 1110 | -10/Mines | Entered Exiles 1158 | -10/Exiles | Welcomed by 8R-AWN 1188 | -10/Exiles | Met EX-HEX 1262 | -10/Exiles | Met EX-DEC 1297 | -10/Exiles | Met EX-BIN 1329 | -10/Exiles | Aligned with FarCom system 1331 | -10/Exiles | Given EX-Vault access code 1386 | -10/Exiles | Opened EX-Vault 1409 | -10/Exiles | Found PSU Rigger 1448 | -10/Exiles | Warned to stay clear of 0b10 Research branches 1649 | -10/Exiles | Discovered new exit (range 12) 1670 | -10/Exiles | Left Exiles lab with PSU Rigger 1670 | -10/Exiles | Entered Mines 1809 | -9/Mines | Assisted by bots powering up and referring to "LRC-V3" 1826 | -9/Mines | Learned location of Storage (-8) 2038 | -9/Mines | Met a Derelict who couldn't figure out how to use a Trap Extractor 2116 | -9/Mines | Received a Rocket Launcher from a helpful Derelict 2171 | -9/Mines | Discovered new exit (range 11) 2212 | -9/Mines | Entered Materials 2212 | -8/Materials | Accompanied by 2 allies 2212 | -8/Materials | Evolved 4 slots: Propulsion x2, Utility x2 2213 | -8/Materials | Identified exit to Storage 2296 | -8/Materials | Lost 3 allies 2477 | -8/Materials | Lost 8 parts (4n2u2w) 2697 | -8/Materials | Build established: Mutant 2700 | -8/Materials | Core integrity fell below 50% 2729 | -8/Materials | Core integrity fell below 20% 2736 | -8/Materials | Destroyed by L-31 Rogue with Katana Last Messages --------------- 02703_ ALERT: Hostiles spotted, dispatching reinforcements to Terminal M005. 02705_ R-06 Scavenger collects Flight Unit. 02714_ R-06 Scavenger collects Faulty Hvy. Ion Engine. 02715_ R-06 Scavenger collects Prototype Energy Gun. 02718_ K-01 Serf cleans the Electrolysis Chamber. 02718_ R-06 Scavenger collects Transport Network Coupler. 02723_ K-01 Serf collects debris. 02729_ Hvy. Ion Engine severed. 02730_ K-01 Serf collects debris. 02732_ S-10 Pest destroyed. 02732_ R-06 Scavenger collects Lgt. Assault Rifle. 02733_ K-01 Serf collects debris. 02733_ R-06 Scavenger collects Flight Unit. 02734_ S-10 Pest destroyed. 02735_ R-06 Scavenger collects Hvy. Ion Engine. 02736_ K-01 Serf collects debris. 02736_ K-01 Serf cleans the Electrolysis Chamber. 02736_ R-06 Scavenger collects Flight Unit. 02736_ K-01 Serf collects debris. Map ----- +----------------------------------------------------+ | ?????????????????????????????????????????????????? | | ?????????????????????????????????????????????????? | | ?????????????????????????????????????????????????? | | ?????????????????????????????????????????????????? | | ?????????????????????????????????????????????????? | | ?????????????????????????????????????????????????? | | ?????????????????????????????????????????????????? | | ?????????????????????????????????????????????????? | | ?????????????????????????????w?? ??????????????? | | ?????????????????????????????? ??????????????? | | ????????????????????????????? ??? ??????? | | ????????????????????????????? ??? ????? | | ????????????????????????????"" ?? ??? | | ?????????????????????????? """ #?? | | ?????????????????????????? """ """ +?? | | ?????????????????????????? k """ #?? | | ??????????????????????????? """ ??? | | ????????????????????????# """ ????? | | ???????????????????????## """ #?????? | | ???????????????????????# """ #?????? | | ???????????????????????? #??????? | | ??????????????????????g???? #??????? | | ????????????????????????###k### % #??????? | | ????????????????????????# r [## ######## | | ????????????????????????#rlg ## # | | ????????????????????????#@""" ## ! %# | | ????????????????????????#r""" ## # "" | | ?????????? ######r""" ## % %%# % """ | | ???????????T [ [%/kk w ## %+%% "" | | ?????????? ###### = ## """% %%#% """ | | ????????????????????????# % ## """ = # """ | | ?????????????????????#####+##### """ # | | ?????????????????????# % #^ # | | ?????????????????????# "" / ######## | | ???????????????? + "Y """ # """ | | ?????????????????# # "" """ # """ | | ?????????????????????# """ # """ | | ?????????????????????# # | | ?????????????????????# # | | ?????????????????????# ! # ############### | | ?????????????????????########### #?????????????? | | ???????????????????????????????# #?????????????? | | ???????????????????????????????# #?????????????? | | ???????????????????????????????# #?????????????? | | ???????????????????????????????# #?????????????? | | ???????????????????????????????# #?????????????? | | ???????????????????????????????# #?????????????? | | ???????????????????????????????+ +?????????????? | | ???????????!???????????????????# #?????????????? | | ???????????????????????????????? ??????????????? | +----------------------------------------------------+ Best States ------------- Heat Dissipation 55 Energy Generation 14 Energy Capacity 280 Matter Stores 300 Matter Capacity 300 Sight Range 16 Terrain Scan Density 10 Evasion (%) 55 Recoil Reduction 2 Item Schematics ----------------- None Robot Schematics ------------------ None Fabricated ------------ Nothing Repaired ---------- Nothing Studied --------- None Alien Tech Used ----------------- None Achievements -------------- None Challenges ------------ None Game ------ Seed EnergyMetaBeam Manual? 0 Play Time 00:17:30 Cumulative 51.3 hours Start 2026.04.14 @ 20:46:19 End 2026.04.14 @ 21:05:41 Sessions 1 Manual Loads 0 Difficulty Rogue Special Mode None Game No. 108 Rogue 108 Adventurer 0 Explorer 0 Win Type - Total 0 Types 0/0/0/0/0/0/0/0/0/0 Lore% 15 Gallery% 29 Achievement% 20 Wizard Run 0 Options --------- Layout 2 ASCII 1 Keyboard 1 Movement Vi Keybinds 0 Fullscreen 0 Font 16/T_Terminus Map View 64x51 Zoom Use 0% Tactical HUD 1 Map Filters SHIFT_HUE(5) Filters LOW_CONTRAST(10,2,20)|SHIFT_HUE(5) Steam 1 RUN: fcfdf40b-1d78-442e-9b9c-30ffed5a800d